Cogmind - Beta 10.2 --- EXPLORER MODE // 2020.12.03 @ 14:37:11 Player: Sewa Result: Destroyed by D-53 Grenadier with Mini Grenade Launcher Performance ------------- Evolutions (0) 0 Regions Visited (2) 400 Robots Destroyed (17) 85 Value Destroyed (394) 394 Prototype IDs (5) 100 Alien Tech Used (0) 0 Bonus (0) 0 TOTAL SCORE: 979 Bonus ------- None Cogmind --------- Core Integrity 0/250 Matter 300/300 Energy 250/250 System Corruption 1% Temperature Cool (0) Movement Treading (160) Location -10/Mines Parts ------- > --- POWER (1) -------- Ion Engine > --- PROPULSION (2) --- Light Treads > --- UTILITY (2) ------ Targeting Computer Sensor Drone Bay (20/20) > --- WEAPON (3) ------- (None) > --- INVENTORY (4) ---- Light Treads Large Battery (300) Terrain Scanner Core Shielding Peak State ------------ > --- POWER ------------ Ion Engine > --- PROPULSION ------- Light Treads Light Treads > --- UTILITY ---------- Targeting Computer Sensor Drone Bay > --- WEAPON ----------- Heavy EM Pulse Gun Heavy EM Pulse Gun Heavy EM Pulse Gun > --- INVENTORY -------- Light Treads Large Battery Terrain Scanner Core Shielding [Rating: 18] Favorites ----------- Power Ion Engine Engine Ion Engine Propulsion Light Treads Treads Light Treads Leg Aluminum Leg Utility Targeting Computer Device Sensor Drone Bay Processor Targeting Computer Protection Core Shielding Weapon Heavy EM Pulse Gun Energy Gun Heavy EM Pulse Gun Launcher Rocket Launcher Special Weapon Welding Torch Build | -11 -10 -10 ------- Run | Scr Mat Min Slots Evolved 1 | . 1 . Power . | . . . Propulsion . | . . . Utility . | . . . Weapon 1 | . 1 . Parts Attached 36 | 10 24 2 Power 8 | 2 6 . Engine 8 | 2 6 . Core . | . . . Reactor . | . . . Propulsion 10 | 4 5 1 Treads 8 | 2 5 1 Leg 2 | 2 . . Wheel . | . . . Hover . | . . . Flight . | . . . Utility 4 | 2 1 1 Device 1 | . . 1 Storage . | . . . Processor 1 | 1 . . Hackware . | . . . Protection 2 | 1 1 . Artifact . | . . . Weapon 14 | 2 12 . Energy Gun 9 | 2 7 . Energy Cannon . | . . . Ballistic Gun . | . . . Ballistic Cannon . | . . . Launcher 4 | . 4 . Special Weapon 1 | . 1 . Impact Weapon . | . . . Slashing Weapon . | . . . Piercing Weapon . | . . . Special Melee Weapon . | . . . Unidentified Prototypes 1 | . . 1 Parts Lost 5 | . 1 4 Power 1 | . 1 . Propulsion 1 | . . 1 Utility . | . . . Weapon 3 | . . 3 Highest Loss Streak 4 | . 1 4 Average Slot Usage (%) 96 | . 95 98 Engine 10 | . 9 12 Treads 24 | . 24 24 Device 1 | . . 7 Processor 12 | . 12 12 Protection 10 | . 11 4 Energy Gun 21 | . 16 35 Launcher 13 | . 18 . Naked Turns . | . . . Heaviest Build 28 | 8 18 28 Greatest Support 40 | 40 40 40 Greatest Overweight (x) 4 | . 4 . Average Overweight (x) . | . . . Largest Inventory Capacity 4 | 4 4 4 Average Capacity 4 | 4 4 4 Most Carried 4 | 4 4 4 Average Carried 2 | 2 2 3 Final Capacity 4 | 4 4 4 Final Carried 4 | 3 2 4 Class Distribution -------------------- 61% | Hacker-Gunner 22% | Hacker-Bomber 16% | Hacker-Mutant Dominant Class ---------------- Hacker-Gunner | -10/Materials Hacker-Gunner | -10/Mines Resources | -11 -10 -10 ----------- Run | Scr Mat Min Matter Collected 635 | 300 279 56 Remotely . | . . . Salvage Created 467 | 83 366 18 Parts 23 | . 20 3 Haulers Intercepted 2 | . 2 . Recyclers Shooed 1 | . 1 . Parts Field Recycled . | . . . Retrieved Matter . | . . . Parts Self-Destructed . | . . . Prevented . | . . . Kills | -11 -10 -10 ------- Run | Scr Mat Min Combat Hostiles Destroyed 10 | . 8 2 Guns 2 | . 2 . AOE 8 | . 6 2 Classes Destroyed 5 | 1 4 . Hauler 2 | . 2 . Recycler 2 | 1 1 . Watcher 3 | . 3 . Swarmer 4 | . 2 2 Grunt 6 | . 6 . Best Kill Streak 6 | 1 6 2 Combat Bots Only 4 | . 4 2 Max Kills in Single Turn 3 | 1 3 2 Gunslinging . | . . . Exploded 2 | . 2 2 Melee . | . . . Uniques/NPCs Destroyed . | . . . Combat | -11 -10 -10 -------- Run | Scr Mat Min Damage Taken 1139 | . 593 546 Core 250 | . 179 71 Absorbed by Shields . | . . . Core Remaining (%) 100 | 100 . . Volleys Fired 23 | 1 19 3 Largest 3 | 2 3 3 Hottest 135 | 80 135 135 Shots Fired 60 | 2 49 9 Gun 35 | 2 24 9 Cannon . | . . . Launcher 21 | . 21 . Special 4 | . 4 . Kinetic . | . . . Thermal 21 | 2 19 . Explosive 21 | . 21 . Electromagnetic 18 | . 9 9 Robot Hit Streak 16 | 2 16 5 Robot Miss Streak 2 | . 2 2 Penetration Max . | . . . Secondary Targets . | . . . Shots Hit Robots 40 | 2 33 5 Core Hits 27 | 2 22 3 Critical Hits . | . . . Critical Kills . | . . . Critical Parts Destroyed . | . . . Melee Attacks . | . . . Impact . | . . . Slashing . | . . . Piercing . | . . . Sneak Attacks . | . . . Combat Hostiles . | . . . Follow-up Attacks . | . . . Damage Inflicted 1495 | 22 1366 107 Guns 355 | 22 283 50 Cannons . | . . . Explosions 1122 | . 1065 57 Melee . | . . . Ramming 12 | . 12 . Kinetic . | . . . Thermal 219 | 22 140 57 Explosive 1065 | . 1065 . Electromagnetic 199 | . 149 50 Impact . | . . . Slashing . | . . . Piercing . | . . . Highest Corruption 1 | . 1 1 Average Corruption 1 | . 1 1 Corruption Purged . | . . . Effects 10 | . 10 . Message Errors 3 | . 3 . Energy Discharges 4 | . 4 . Data Loss (minor) 3 | . 3 . Overload Shots . | . . . Overflow Damage 106 | . 106 . Projectiles . | . . . Explosions 106 | . 106 . Melee . | . . . Knockbacks . | . . . Impact . | . . . Kinetic . | . . . Secondary . | . . . Self-Inflicted Damage 41 | . 21 20 Shots 2 | . 1 1 Rammed 4 | . 4 . Targets Rammed 4 | . 4 . Kicked . | . . . Crushed . | . . . Highest Temperature 162 | 3 162 162 Average Temperature 50 | 2 47 72 Received Heat Transfer 204 | . 204 . Siege Activations . | . . . Robots Corrupted . | . . . Combat Hostiles . | . . . Parts Fried 1 | . 1 . Impact Corruptions . | . . . Robots Melted . | . . . Combat Hostiles . | . . . Parts Melted . | . . . Heat Transferred 500 | 50 350 100 Parts Sabotaged . | . . . Parts Stolen . | . . . Parts Stripped . | . . . Power Chain Reactions 1 | . . 1 Missiles Intercepted . | . . . Alert | -11 -10 -10 ------- Run | Scr Mat Min Peak Influence 176 | 5 176 54 Initial 4 | . 2 4 Average 29 | 1 35 20 Maximum Alert Level . | . . . Low Security (%) 100 | 100 100 100 Level 1 . | . . . Level 2 . | . . . Level 3 . | . . . Level 4 . | . . . Level 5 . | . . . High Security . | . . . Max Security . | . . . Squads Dispatched 1 | . 1 . Investigation 1 | . 1 . Extermination . | . . . Reinforcement . | . . . Assault . | . . . Garrison . | . . . Intercept . | . . . Construction Impeded . | . . . Haulers Reinforced . | . . . Stealth | -11 -10 -10 --------- Run | Scr Mat Min Distress Signals 3 | . 3 . Communications Jammed . | . . . Distress Signals . | . . . Times Spotted 19 | . 13 6 Peak Tracking Total 3 | . 3 2 Tactical Retreats 1 | . 1 . Traps | -11 -10 -10 ------- Run | Scr Mat Min Traps Triggered 4 | . 4 . Indirectly . | . . . Trap Hack Attempts . | . . . Triggered . | . . . Disarmed . | . . . Reprogrammed . | . . . Reused . | . . . Traps Extracted . | . . . Installed . | . . . Triggered . | . . . Machines | -11 -10 -10 ---------- Run | Scr Mat Min Machines Disabled 6 | . 6 . Max in Single Turn 2 | . 2 . Machines Sabotaged . | . . . Garrisons Compromised . | . . . Overloaded Fab Kills . | . . . Fab Network Shutdowns . | . . . Hacking | -11 -10 -10 --------- Run | Scr Mat Min Machines Accessed 11 | . 10 1 Terminals 7 | . 7 . Fabricators . | . . . Repair Stations 1 | . 1 . Recycling Units 2 | . 2 . Scanalyzers . | . . . Garrison Access . | . . . Total Hacks 26 | . 25 1 Successful 20 | . 19 1 Failed 6 | . 6 . Catastrophic . | . . . Database Lockouts . | . . . Manual 6 | . 6 . Terminals 13 | . 13 . Fabricators . | . . . Repair Stations 7 | . 7 . Recycling Units 5 | . 5 . Scanalyzers . | . . . Garrison Access . | . . . Terminal Hacks 9 | . 8 1 Prototype ID Bank 2 | . 2 . Open Door 1 | . . 1 Emergency Access Points 1 | . 1 . Fabricator Index 1 | . 1 . Locate Traps 2 | . 2 . Hauler Manifests 1 | . 1 . Zone Layout 1 | . 1 . Fabricator Hacks . | . . . Repair Station Hacks 6 | . 6 . Scan Component 3 | . 3 . Repair 3 | . 3 . Recycling Unit Hacks 5 | . 5 . Recycle Component 1 | . 1 . Process 1 | . 1 . Report Inventory 2 | . 2 . Retrieve Matter 1 | . 1 . Scanalyzer . | . . . Garrison Access Hacks . | . . . Unauthorized Hacks . | . . . Terminals . | . . . Fabricators . | . . . Repair Stations . | . . . Recycling Units . | . . . Scanalyzers . | . . . Garrison Access . | . . . Data Cores Recovered . | . . . Used . | . . . Hacking Detections 9 | . 9 . Full Trace Events 1 | . 1 . Feedback Events . | . . . Feedback Blocked . | . . . Robot Schematics Acquired . | . . . Robots Built . | . . . Matter . | . . . Time . | . . . Total Robot Build Rating . | . . . Part Schematics Acquired . | . . . Parts Built . | . . . Matter . | . . . Time . | . . . Total Part Build Rating . | . . . Parts Repaired 3 | . 3 . Time 84 | . 84 . Parts Recycled 1 | . 1 . Recycled Matter 154 | . 154 . Retrieved Matter 154 | . 154 . Retrieved Components . | . . . Parts Scanalyzed . | . . . Part Schematics Acquired . | . . . Parts Damaged . | . . . Bothacking | -11 -10 -10 ------------ Run | Scr Mat Min Used RIF Installer . | . . . Robots Hacked . | . . . Non-combat . | . . . Combat . | . . . Robot Hacks Applied . | . . . Relay Couplers Released . | . . . Robots Rewired . | . . . Allies Hacked . | . . . Hacks Repelled . | . . . Allies | -11 -10 -10 -------- Run | Scr Mat Min Total Allies 3 | . . 3 Largest Group 3 | . . 3 Highest-Rated Group 40 | . . 40 Highest-Rated Ally 16 | . . 16 Total Orders . | . . . Ally Attacks 20 | . . 20 Total Damage 134 | . . 134 Kills 3 | . . 3 Allies Corrupted . | . . . Allies Melted . | . . . Intel | -11 -10 -10 ------- Run | Scr Mat Min Robot Analysis Total . | . . . Derelict Logs Recovered . | . . . Drone Launches . | . . . Drone Recoveries . | . . . Exploration | -11 -10 -10 ------------- Run | Scr Mat Min Turns Passed 2673 | 193 1861 619 Spaces Moved 1512 | 127 1022 363 Core 25 | 24 1 . Treads 1435 | 51 1021 363 Legs 52 | 52 . . Wheels . | . . . Hover . | . . . Flight . | . . . Fastest Speed 50 | 50 160 160 Average Speed 156 | 122 160 160 Slowest Speed 250 | 160 250 160 Overloaded Moves . | . . . Propulsion Burnouts . | . . . Robots Hopped . | . . . Cave-ins Triggered 1 | . 1 . Exploration Rate (%) 52 | 6 88 63 Regions Visited 2 Branch Regions 1 Pre-discovered Areas . | . . . Known Exits Taken 2 | 1 1 . Unknown Exits Taken . | . . . Scrap Searched . | . . . Spaces Dug . | . . . Terrain Destroyed 162 | . 157 5 Melee . | . . . Projectile . | . . . AOE 162 | . 157 5 Terrain Rammed . | . . . Walls Destroyed . | . . . Machines Disabled . | . . . Actions | -11 -10 -10 --------- Run | Scr Mat Min Total 1753 | 159 1201 393 Wait 147 | 17 107 23 Move 1509 | 126 1020 363 Hop . | . . . Pick Up 12 | 2 8 2 Fast Attach 25 | 9 16 . Attach 3 | 1 2 . Detach 7 | 2 5 . Swap 8 | . 6 2 Drop 14 | 1 13 . Fire 23 | 1 19 3 Melee . | . . . Ram . | . . . Kick . | . . . Crush 4 | . 4 . Escape Stasis 1 | . 1 . Rewire . | . . . Trap . | . . . Miscellaneous . | . . . Route ------- -11/Scrapyard -10/Materials (discovered 5 exits: *Mat x3 / *Min x2) -10/Mines (discovered 1 exit: *Mat) History --------- Turn | Location | Event 7 | -11/Scrapyard | Identified exit to Materials 7 | -11/Scrapyard | Discovered exit to Materials (range 15) 194 | -11/Scrapyard | Entered Materials 194 | -10/Materials | Evolved 1 slot: Weapon x1 573 | -10/Materials | Build established: Hacker-Gunner 682 | -10/Materials | Identified exit to Materials 682 | -10/Materials | Discovered exit to Materials (range 11) 827 | -10/Materials | Crushed by falling debris 828 | -10/Materials | Core integrity fell below 50% 889 | -10/Materials | Identified exit to Mines 889 | -10/Materials | Discovered exit to Mines (range 12) 1107 | -10/Materials | Discovered exit to Materials (range 16) 1111 | -10/Materials | Build established: Hacker-Bomber 1195 | -10/Materials | Discovered exit to Materials (range 15) 1279 | -10/Materials | Repaired Rocket Launcher 1307 | -10/Materials | Repaired Core Shielding 1334 | -10/Materials | Repaired Ion Engine 1629 | -10/Materials | Discovered exit to Mines (range 8) 1911 | -10/Materials | Build established: Hacker-Gunner 2055 | -10/Materials | Entered Mines 2294 | -10/Mines | Found the Drone Emporium 2302 | -10/Mines | Found Prototype Device 2306 | -10/Mines | Identified Sensor Drone Bay 2323 | -10/Mines | Assembled infested the area 2404 | -10/Mines | Assisted by bots powering up and referring to "LRC-V3" 2654 | -10/Mines | Core integrity fell below 20% 2659 | -10/Mines | Discovered exit to Materials (range 14) 2674 | -10/Mines | Destroyed by D-53 Grenadier with Mini Grenade Launcher Last Messages --------------- K-01 Serf collects debris. T-07 Excavator destroyed. K-01 Serf collects debris. Hvy. EM Pulse Gun destroyed. Trooper 1b destroyed. K-01 Serf collects debris. The unstable cave ceiling collapses. K-01 Serf collects debris. EXIT=FOUND: MATERIALS K-01 Serf collects debris. D-53 Grenadier destroyed. The unstable cave ceiling collapses. K-01 Serf collects debris. Hvy. EM Pulse Gun destroyed. K-01 Serf collects debris. The unstable cave ceiling collapses. Lgt. Treads destroyed. The unstable cave ceiling collapses. K-01 Serf collects debris. [Achievement: First Step to Greatness] Map ----- +----------------------------------------------------+ | ????????????????# % ?????## | | ????????????????# ! ????## | | ????????????????# !#?????# | | ????????????????# %####??# | | ????????????????# % % ##?# # | | ?????????????????# #### #### | | ?????????????????# ##??? | | ??????????####??## = ##???? | | ??????????####### |! ### ##????? | | ??????????##!### !%= !!* #?# ????? | | ??????????# =% =* *% !%= #?# ###???? | | ??????????# k %[ == ### ###???? | | ??????????## k ! *%= #???? | | ??????????### ! * * #???? | | ????????????## # ##### #???? | | ??? ????????# d ######???# #???? | | ??# ##### ##????????# #???? | | ??# # #?????????# #???? | | ??# < #### ##?????????# #???? | | ???????????# #??????????# #???? | | ???????????# # ##??????????# #???? | | ????????#### ##???????????# #???? | | ????????# #????????????# ???? | | ????????# #????????????###???? | | ????????## #######?????????????? | | ?????????#### @ #???????????? | | ????????????## #???????????? | | ?????????????## ######### #???????????? | | ??????????????# ##?????????? ??????????? | | ??????????????# #???????????????????????? | | ????????###???# #???????????????????????? | | ????????# #### #???????????????????????? | | ????????# #???????????????????????? | | ????????# | ##??????????????????????? | | ????????# ## ###????????????????????? | | ????????#??## ##???????????????????? | | ????????????## ##??????????????????? | | ?????????????## #??????????????????? | | ????????????### #################### | | ????????????# ! ! | | ????????????# ### ################ | | ????????????# #### #?# #??????????????? | | ????????????# ???## #?# #??????????????? | | ????????????# ????# #?# #??????????????? | | ???????????? ?????## ## #??????????????? | | ???????????? ??????## ??????????????? | | ???????????# ???????## ??????????????? | | ???????????#??????????### ??????????????? | | ?????????????????????????###?????????????? | | ?????????????????????????????????????????? | +----------------------------------------------------+ Best States ------------- Heat Dissipation 25 Energy Generation 10 Energy Capacity 250 Matter Stores 300 Matter Capacity 300 Sight Range 16 Terrain Scan Density 10 Resistance: KI 35 Resistance: TH 35 Resistance: EX 35 Resistance: EM 35 Resistance: I 35 Resistance: S 35 Resistance: P 35 Core Shielding 20 Evasion (%) 40 Targeting Accuracy 5 Recoil Reduction 2 Offensive Hacking 20 Item Schematics ----------------- None Robot Schematics ------------------ None Fabricated ------------ Nothing Alien Tech Used ----------------- None Achievements -------------- First Step to Greatness One Hack Too Far Unlikely Earthworm Challenges ------------ None Game ------ Seed DynamicResetRedistributor Manual? 0 Play Time 00:23:43 Cumulative 2.0 hours Start 2020.12.03 @ 13:02:28 End 2020.12.03 @ 14:37:11 Sessions 4 Manual Loads 0 Difficulty Explorer Special Mode None Game No. 3 Rogue 0 Adventurer 0 Explorer 3 Win Type - Total 0 Types 0/0/0/0/0/0/0/0/0 Lore% 5 Gallery% 6 Achievement% 9 Wizard Run 0 Options --------- ASCII 0 Keyboard 0 Movement Arrows Keybinds 0 Fullscreen 1 Font 12/Terminus Map View 83x54 Tactical HUD 0 Map Filters NONE Filters NONE Steam 0 RUN: e2aef6ad-0f12-4ebf-815c-a3ba66193281